[Event "Titled Tuesday Blitz June 20 Early 2023"]
[White "Samaganova, Aleksandra"]
[Black "LangesNasenhaar"]
[WhiteFideId "13800221"]
[WhiteElo "1858"]
[BlackElo "2442"]
[Result "1/2-1/2"]
[Round "10"]
[TimeControl "180+2"]
[Date "2023.06.20"]
[WhiteClock "0:00:07"]
[BlackClock "0:00:07"]
[Board "123"]

1. c4 {[%clk 0:03:00]}  b6 {[%clk 0:02:57]} 2. Nc3 {[%clk 0:02:56]}  Bb7 {[%clk 0:02:47]} 3. e4 {[%clk 0:02:46]}  e6 {[%clk 0:02:46]} 4. d4 {[%clk 0:02:35]}  Bb4 {[%clk 0:02:33]} 5. Bd3 {[%clk 0:02:30]}  f5 {[%clk 0:02:33]} 6. d5 {[%clk 0:02:13]}  fxe4 {[%clk 0:02:28]} 7. Bxe4 {[%clk 0:02:07]}  Qh4 {[%clk 0:02:24]} 8. Qe2 {[%clk 0:01:54]}  Nf6 {[%clk 0:02:16]} 9. Bd3 {[%clk 0:01:33]}  O-O {[%clk 0:02:05]} 10. Nf3 {[%clk 0:01:31]}  Qg4 {[%clk 0:02:03]} 11. O-O {[%clk 0:01:19]}  Bxc3 {[%clk 0:01:57]} 12. bxc3 {[%clk 0:01:18]}  exd5 {[%clk 0:01:57]} 13. h3 {[%clk 0:01:05]}  Qh5 {[%clk 0:01:51]} 14. cxd5 {[%clk 0:01:00]}  Bxd5 {[%clk 0:01:43]} 15. Bc4 {[%clk 0:00:59]}  Nc6 {[%clk 0:01:33]} 16. Rd1 {[%clk 0:00:50]}  Bxc4 {[%clk 0:01:26]} 17. Qxc4+ {[%clk 0:00:49]}  Kh8 {[%clk 0:01:26]} 18. Bg5 {[%clk 0:00:43]}  Qf7 {[%clk 0:01:20]} 19. Qh4 {[%clk 0:00:37]}  d6 {[%clk 0:00:54]} 20. Qa4 {[%clk 0:00:26]}  Ne7 {[%clk 0:00:48]} 21. Nd4 {[%clk 0:00:25]}  a6 {[%clk 0:00:38]} 22. Re1 {[%clk 0:00:24]}  Rfe8 {[%clk 0:00:24]} 23. Re2 {[%clk 0:00:15]}  Ned5 {[%clk 0:00:23]} 24. Rxe8+ {[%clk 0:00:09]}  Qxe8 {[%clk 0:00:23]} 25. Qc4 {[%clk 0:00:09]}  b5 {[%clk 0:00:20]} 26. Qd3 {[%clk 0:00:08]}  Qf7 {[%clk 0:00:19]} 27. Re1 {[%clk 0:00:07]}  Re8 {[%clk 0:00:19]} 28. Rd1 {[%clk 0:00:07]}  h6 {[%clk 0:00:13]} 29. Bh4 {[%clk 0:00:07]}  g5 {[%clk 0:00:10]} 30. Bg3 {[%clk 0:00:07]}  Ne4 {[%clk 0:00:11]} 31. Ne2 {[%clk 0:00:04]}  Ndf6 {[%clk 0:00:08]} 32. Qd4 {[%clk 0:00:04]}  Kh7 {[%clk 0:00:07]} 33. Qd3 {[%clk 0:00:04]}  Qg6 {[%clk 0:00:07]} 34. Qd4 {[%clk 0:00:03]}  Nc5 {[%clk 0:00:07]} 35. Nc1 {[%clk 0:00:03]}  Nfe4 {[%clk 0:00:04]} 36. Nb3 {[%clk 0:00:03]}  Ne6 {[%clk 0:00:04]} 37. Qd5 {[%clk 0:00:03]}  Nxg3 {[%clk 0:00:05]} 38. fxg3 {[%clk 0:00:03]}  Qf6 {[%clk 0:00:04]} 39. Qd3+ {[%clk 0:00:03]}  Qg6 {[%clk 0:00:04]} 40. Qd5 {[%clk 0:00:04]}  Ng7 {[%clk 0:00:05]} 41. Nd4 {[%clk 0:00:04]}  Re7 {[%clk 0:00:04]} 42. Qc6 {[%clk 0:00:04]}  Re3 {[%clk 0:00:03]} 43. Nf3 {[%clk 0:00:03]}  Qe4 {[%clk 0:00:03]} 44. Qxc7 {[%clk 0:00:03]}  Qe7 {[%clk 0:00:02]} 45. Qxe7 {[%clk 0:00:03]}  Rxe7 {[%clk 0:00:03]} 46. Rxd6 {[%clk 0:00:04]}  Re3 {[%clk 0:00:04]} 47. Rxa6 {[%clk 0:00:04]}  Rxc3 {[%clk 0:00:04]} 48. Rb6 {[%clk 0:00:04]}  Rc1+ {[%clk 0:00:05]} 49. Kh2 {[%clk 0:00:04]}  Nf5 {[%clk 0:00:06]} 50. Rxb5 {[%clk 0:00:04]}  Ne3 {[%clk 0:00:06]} 51. Rb7+ {[%clk 0:00:04]}  Kg8 {[%clk 0:00:06]} 52. Re7 {[%clk 0:00:04]}  Rc3 {[%clk 0:00:06]} 53. Nd4 {[%clk 0:00:03]}  Nf1+ {[%clk 0:00:05]} 54. Kg1 {[%clk 0:00:03]}  Rc1 {[%clk 0:00:06]} 55. Kf2 {[%clk 0:00:04]}  Nd2 {[%clk 0:00:07]} 56. Ke3 {[%clk 0:00:04]}  Nf1+ {[%clk 0:00:06]} 57. Kf2 {[%clk 0:00:03]}  Nd2 {[%clk 0:00:06]} 58. Nf5 {[%clk 0:00:04]}  Rc2 {[%clk 0:00:06]} 59. Nxh6+ {[%clk 0:00:04]}  Kf8 {[%clk 0:00:06]} 60. Rf7+ {[%clk 0:00:04]}  Ke8 {[%clk 0:00:07]} 61. Ke1 {[%clk 0:00:05]}  Nc4 {[%clk 0:00:06]} 62. Kd1 {[%clk 0:00:05]}  Ne3+ {[%clk 0:00:06]} 63. Ke1 {[%clk 0:00:05]}  Rxg2 {[%clk 0:00:06]} 64. Rb7 {[%clk 0:00:04]}  Nc2+ {[%clk 0:00:05]} 65. Kd1 {[%clk 0:00:04]}  Ne3+ {[%clk 0:00:05]} 66. Kc1 {[%clk 0:00:04]}  Rxa2 {[%clk 0:00:06]} 67. Rb8+ {[%clk 0:00:04]}  Ke7 {[%clk 0:00:06]} 68. Rb6 {[%clk 0:00:05]}  Rc2+ {[%clk 0:00:04]} 69. Kb1 {[%clk 0:00:05]}  Rh2 {[%clk 0:00:05]} 70. Ng4 {[%clk 0:00:05]}  Nxg4 {[%clk 0:00:03]} 71. hxg4 {[%clk 0:00:05]}  Rg2 {[%clk 0:00:04]} 72. Rb3 {[%clk 0:00:05]}  Rf2 {[%clk 0:00:04]} 73. Rb5 {[%clk 0:00:04]}  Kf6 {[%clk 0:00:04]} 74. Rb6+ {[%clk 0:00:05]}  Kg7 {[%clk 0:00:04]} 75. Rb5 {[%clk 0:00:05]}  Kg6 {[%clk 0:00:04]} 76. Rb6+ {[%clk 0:00:05]}  Kf7 {[%clk 0:00:04]} 77. Rb5 {[%clk 0:00:05]}  Rf1+ {[%clk 0:00:04]} 78. Kc2 {[%clk 0:00:05]}  Kf6 {[%clk 0:00:05]} 79. Rb6+ {[%clk 0:00:05]}  Ke7 {[%clk 0:00:06]} 80. Rb5 {[%clk 0:00:05]}  Rf2+ {[%clk 0:00:06]} 81. Kd1 {[%clk 0:00:05]}  Kf6 {[%clk 0:00:06]} 82. Rb6+ {[%clk 0:00:05]}  Ke7 {[%clk 0:00:06]} 83. Rb5 {[%clk 0:00:06]}  Kf6 {[%clk 0:00:06]} 84. Rb6+ {[%clk 0:00:06]}  Ke7 {[%clk 0:00:06]} 85. Rg6 {[%clk 0:00:06]}  Rg2 {[%clk 0:00:05]} 86. Rxg5 {[%clk 0:00:07]}  Rxg3 {[%clk 0:00:06]} 87. Ke2 {[%clk 0:00:06]}  Kf6 {[%clk 0:00:06]} 88. Rf5+ {[%clk 0:00:06]}  Kg6 {[%clk 0:00:07]} 89. Rf4 {[%clk 0:00:06]}  Ra3 {[%clk 0:00:07]} 90. Rb4 {[%clk 0:00:06]}  Kg5 {[%clk 0:00:07]} 91. Kf2 {[%clk 0:00:06]}  Ra2+ {[%clk 0:00:06]} 92. Kf3 {[%clk 0:00:06]}  Ra3+ {[%clk 0:00:06]} 93. Kf2 {[%clk 0:00:06]}  Ra2+ {[%clk 0:00:07]} 94. Kf3 {[%clk 0:00:07]}  Ra3+ {[%clk 0:00:07]} 95. Kf2 {[%clk 0:00:07]} 1/2-1/2


[Site "https://www.chess.com"]

[Event "Titled Tuesday Blitz June 20 Early 2023"]
[White "Gomes, Luiz Alexandre de Souza"]
[Black "Mayaud, Raphael"]
[WhiteFideId "2102790"]
[BlackFideId "627151"]
[WhiteElo "2415"]
[BlackElo "2191"]
[Result "1/2-1/2"]
[Round "10"]
[TimeControl "180+2"]
[Date "2023.06.20"]
[WhiteClock "0:00:35"]
[BlackClock "0:00:14"]
[Board "125"]

1. e4 {[%clk 0:03:00]}  d5 {[%clk 0:02:46]} 2. exd5 {[%clk 0:03:00]}  Qxd5 {[%clk 0:02:46]} 3. Nc3 {[%clk 0:03:00]}  Qa5 {[%clk 0:02:43]} 4. Bc4 {[%clk 0:03:00]}  c6 {[%clk 0:02:43]} 5. d3 {[%clk 0:03:01]}  Nf6 {[%clk 0:02:44]} 6. Bd2 {[%clk 0:03:01]}  Qc7 {[%clk 0:02:43]} 7. Qe2 {[%clk 0:03:01]}  e6 {[%clk 0:02:39]} 8. O-O-O {[%clk 0:03:00]}  b5 {[%clk 0:02:39]} 9. Bb3 {[%clk 0:03:00]}  a5 {[%clk 0:02:39]} 10. a4 {[%clk 0:03:00]}  b4 {[%clk 0:02:40]} 11. Ne4 {[%clk 0:03:00]}  Be7 {[%clk 0:02:40]} 12. g3 {[%clk 0:02:48]}  Nxe4 {[%clk 0:02:37]} 13. Qxe4 {[%clk 0:02:45]}  O-O {[%clk 0:02:36]} 14. Nf3 {[%clk 0:02:43]}  Nd7 {[%clk 0:02:30]} 15. h4 {[%clk 0:02:39]}  Nc5 {[%clk 0:02:28]} 16. Qg4 {[%clk 0:02:25]}  Nxb3+ {[%clk 0:02:24]} 17. cxb3 {[%clk 0:02:26]}  e5 {[%clk 0:02:01]} 18. Qe4 {[%clk 0:02:21]}  Be6 {[%clk 0:01:16]} 19. Kc2 {[%clk 0:02:16]}  Bd5 {[%clk 0:01:12]} 20. Qe3 {[%clk 0:02:14]}  Bd6 {[%clk 0:01:04]} 21. Rhe1 {[%clk 0:02:14]}  Rae8 {[%clk 0:01:02]} 22. Ng5 {[%clk 0:02:04]}  f6 {[%clk 0:00:56]} 23. Ne4 {[%clk 0:02:04]}  Be7 {[%clk 0:00:51]} 24. Bc1 {[%clk 0:01:40]}  Qd7 {[%clk 0:00:46]} 25. Nd2 {[%clk 0:01:39]}  Bd6 {[%clk 0:00:44]} 26. Nc4 {[%clk 0:01:39]}  Bc7 {[%clk 0:00:44]} 27. Qc5 {[%clk 0:01:36]}  Qe7 {[%clk 0:00:38]} 28. Be3 {[%clk 0:01:35]}  Qxc5 {[%clk 0:00:36]} 29. Bxc5 {[%clk 0:01:35]}  Rf7 {[%clk 0:00:37]} 30. d4 {[%clk 0:01:31]}  e4 {[%clk 0:00:36]} 31. Ne3 {[%clk 0:01:26]}  f5 {[%clk 0:00:35]} 32. Nxd5 {[%clk 0:01:23]}  cxd5 {[%clk 0:00:35]} 33. Kd2 {[%clk 0:01:17]}  f4 {[%clk 0:00:35]} 34. gxf4 {[%clk 0:01:14]}  Rxf4 {[%clk 0:00:34]} 35. Ke2 {[%clk 0:01:14]}  Re6 {[%clk 0:00:33]} 36. Rh1 {[%clk 0:01:10]}  Ref6 {[%clk 0:00:33]} 37. Rdf1 {[%clk 0:01:10]}  Rf3 {[%clk 0:00:31]} 38. Rhg1 {[%clk 0:00:59]}  Rxb3 {[%clk 0:00:30]} 39. Rb1 {[%clk 0:00:59]}  Rff3 {[%clk 0:00:24]} 40. Rg5 {[%clk 0:00:59]}  Rh3 {[%clk 0:00:19]} 41. Rxd5 {[%clk 0:00:58]}  Rxh4 {[%clk 0:00:19]} 42. Rd7 {[%clk 0:00:55]}  Bf4 {[%clk 0:00:19]} 43. d5 {[%clk 0:00:54]}  e3 {[%clk 0:00:19]} 44. Bxe3 {[%clk 0:00:53]}  Bxe3 {[%clk 0:00:19]} 45. fxe3 {[%clk 0:00:53]}  Re4 {[%clk 0:00:20]} 46. Rg1 {[%clk 0:00:46]}  Rbxe3+ {[%clk 0:00:21]} 47. Kd2 {[%clk 0:00:46]}  Re2+ {[%clk 0:00:20]} 48. Kd1 {[%clk 0:00:42]}  g6 {[%clk 0:00:20]} 49. Rf1 {[%clk 0:00:42]}  Re7 {[%clk 0:00:18]} 50. Rd8+ {[%clk 0:00:40]}  Re8 {[%clk 0:00:18]} 51. Rd7 {[%clk 0:00:39]}  R2e7 {[%clk 0:00:18]} 52. Rd6 {[%clk 0:00:39]}  Re4 {[%clk 0:00:14]} 53. Rd7 {[%clk 0:00:35]}  R4e7 {[%clk 0:00:14]} 54. Rd6 {[%clk 0:00:34]}  Re4 {[%clk 0:00:14]} 55. Rd7 {[%clk 0:00:35]}  R4e7 {[%clk 0:00:14]} 1/2-1/2


[Site "https://www.chess.com"]

[Event "Titled Tuesday Blitz June 20 Early 2023"]
[White "Carrasco Miranda, Andres"]
[Black "Winkels, Marcel"]
[WhiteFideId "3405990"]
[BlackFideId "1003887"]
[WhiteElo "2183"]
[BlackElo "1900"]
[Result "1-0"]
[Round "10"]
[TimeControl "180+2"]
[Date "2023.06.20"]
[WhiteClock "0:00:15"]
[BlackClock "0:00:00"]
[Board "128"]

1. d4 {[%clk 0:02:57]}  Nf6 {[%clk 0:03:00]} 2. c4 {[%clk 0:02:57]}  g6 {[%clk 0:02:59]} 3. g3 {[%clk 0:02:57]}  Bg7 {[%clk 0:02:59]} 4. Bg2 {[%clk 0:02:58]}  c6 {[%clk 0:03:00]} 5. Nc3 {[%clk 0:02:58]}  d5 {[%clk 0:03:00]} 6. cxd5 {[%clk 0:02:57]}  cxd5 {[%clk 0:03:00]} 7. Bf4 {[%clk 0:02:52]}  O-O {[%clk 0:02:59]} 8. Nf3 {[%clk 0:02:53]}  Ne4 {[%clk 0:02:58]} 9. O-O {[%clk 0:02:51]}  Bf5 {[%clk 0:02:55]} 10. Qb3 {[%clk 0:02:51]}  Nc6 {[%clk 0:02:54]} 11. Rfd1 {[%clk 0:02:36]}  Nxc3 {[%clk 0:02:48]} 12. bxc3 {[%clk 0:02:35]}  Na5 {[%clk 0:02:45]} 13. Qa4 {[%clk 0:02:33]}  Rc8 {[%clk 0:02:39]} 14. Qb4 {[%clk 0:01:50]}  b6 {[%clk 0:02:28]} 15. Rac1 {[%clk 0:01:48]}  Rc4 {[%clk 0:02:25]} 16. Qb2 {[%clk 0:01:47]}  Rc8 {[%clk 0:02:21]} 17. Ne5 {[%clk 0:01:45]}  Nc4 {[%clk 0:02:20]} 18. Nxc4 {[%clk 0:01:45]}  Rxc4 {[%clk 0:02:19]} 19. Qb5 {[%clk 0:01:37]}  Be6 {[%clk 0:01:44]} 20. e4 {[%clk 0:01:35]}  Bg4 {[%clk 0:01:25]} 21. exd5 {[%clk 0:01:21]}  Qc8 {[%clk 0:01:17]} 22. Re1 {[%clk 0:01:07]}  Rxc3 {[%clk 0:01:12]} 23. d6 {[%clk 0:01:03]}  exd6 {[%clk 0:00:53]} 24. Qb4 {[%clk 0:01:00]}  Rxc1 {[%clk 0:00:49]} 25. Rxc1 {[%clk 0:01:01]}  Qd7 {[%clk 0:00:48]} 26. Bxd6 {[%clk 0:00:41]}  Rd8 {[%clk 0:00:47]} 27. Be5 {[%clk 0:00:41]}  Bxe5 {[%clk 0:00:43]} 28. dxe5 {[%clk 0:00:42]}  Qd1+ {[%clk 0:00:41]} 29. Qe1 {[%clk 0:00:35]}  Qd2 {[%clk 0:00:25]} 30. h3 {[%clk 0:00:31]}  Be6 {[%clk 0:00:22]} 31. a3 {[%clk 0:00:31]}  Bb3 {[%clk 0:00:19]} 32. h4 {[%clk 0:00:21]}  Qxc1 {[%clk 0:00:18]} 33. Qxc1 {[%clk 0:00:20]}  Rd1+ {[%clk 0:00:19]} 34. Qxd1 {[%clk 0:00:21]}  Bxd1 {[%clk 0:00:19]} 35. f4 {[%clk 0:00:22]}  Kf8 {[%clk 0:00:18]} 36. Kf2 {[%clk 0:00:22]}  Ke7 {[%clk 0:00:18]} 37. Bd5 {[%clk 0:00:22]}  f6 {[%clk 0:00:16]} 38. Bg8 {[%clk 0:00:21]}  fxe5 {[%clk 0:00:16]} 39. fxe5 {[%clk 0:00:18]}  h6 {[%clk 0:00:14]} 40. Ke3 {[%clk 0:00:17]}  Bc2 {[%clk 0:00:12]} 41. Kd4 {[%clk 0:00:15]}  Bb1 {[%clk 0:00:10]} 42. Bh7 {[%clk 0:00:15]}  g5 {[%clk 0:00:00]} 43. Bxb1 {[%clk 0:00:15]} 1-0


[Site "https://www.chess.com"]

[Event "Titled Tuesday Blitz June 20 Early 2023"]
[White "Antonio, Jorge Carlos"]
[Black "Iskusnyh, Sergei"]
[WhiteFideId "113190"]
[BlackFideId "4120027"]
[WhiteElo "2247"]
[BlackElo "2492"]
[Result "1/2-1/2"]
[Round "10"]
[TimeControl "180+2"]
[Date "2023.06.20"]
[WhiteClock "0:00:03"]
[BlackClock "0:00:09"]
[Board "132"]

1. d4 {[%clk 0:02:58]}  d5 {[%clk 0:02:59]} 2. Nf3 {[%clk 0:02:55]}  Nf6 {[%clk 0:02:59]} 3. Bf4 {[%clk 0:02:50]}  c5 {[%clk 0:02:58]} 4. e3 {[%clk 0:02:35]}  Nc6 {[%clk 0:02:55]} 5. c3 {[%clk 0:02:28]}  Qb6 {[%clk 0:02:55]} 6. Qc2 {[%clk 0:02:26]}  g6 {[%clk 0:02:51]} 7. h3 {[%clk 0:02:20]}  Bg7 {[%clk 0:02:50]} 8. Nbd2 {[%clk 0:02:16]}  cxd4 {[%clk 0:02:49]} 9. exd4 {[%clk 0:02:13]}  O-O {[%clk 0:02:47]} 10. Qb3 {[%clk 0:02:10]}  Nh5 {[%clk 0:02:14]} 11. Bh2 {[%clk 0:02:05]}  Re8 {[%clk 0:01:56]} 12. Qxb6 {[%clk 0:02:00]}  axb6 {[%clk 0:01:56]} 13. Bb5 {[%clk 0:01:57]}  Bd7 {[%clk 0:01:46]} 14. O-O {[%clk 0:01:53]}  Bh6 {[%clk 0:01:42]} 15. a4 {[%clk 0:01:50]}  Nf4 {[%clk 0:01:40]} 16. Rfe1 {[%clk 0:01:46]}  Rac8 {[%clk 0:01:26]} 17. Bxf4 {[%clk 0:01:39]}  Bxf4 {[%clk 0:01:25]} 18. Nf1 {[%clk 0:01:38]}  e6 {[%clk 0:01:18]} 19. g3 {[%clk 0:01:33]}  Bd6 {[%clk 0:01:14]} 20. Ne5 {[%clk 0:01:27]}  Bxe5 {[%clk 0:00:47]} 21. dxe5 {[%clk 0:01:23]}  Nb8 {[%clk 0:00:44]} 22. Bxd7 {[%clk 0:01:13]}  Nxd7 {[%clk 0:00:43]} 23. Ra3 {[%clk 0:01:09]}  Rc4 {[%clk 0:00:39]} 24. Nd2 {[%clk 0:01:04]}  Rc5 {[%clk 0:00:33]} 25. f4 {[%clk 0:00:59]}  Ra8 {[%clk 0:00:31]} 26. b4 {[%clk 0:00:55]}  Rc7 {[%clk 0:00:29]} 27. Nf3 {[%clk 0:00:51]}  Rac8 {[%clk 0:00:24]} 28. Re3 {[%clk 0:00:46]}  Nb8 {[%clk 0:00:23]} 29. Nd4 {[%clk 0:00:42]}  Nc6 {[%clk 0:00:23]} 30. Nb5 {[%clk 0:00:39]}  Rd7 {[%clk 0:00:23]} 31. Kf2 {[%clk 0:00:35]}  d4 {[%clk 0:00:19]} 32. Rd3 {[%clk 0:00:31]}  Rcd8 {[%clk 0:00:19]} 33. Nxd4 {[%clk 0:00:28]}  Nxd4 {[%clk 0:00:18]} 34. cxd4 {[%clk 0:00:26]}  Rxd4 {[%clk 0:00:19]} 35. Ke3 {[%clk 0:00:22]}  Rxd3+ {[%clk 0:00:17]} 36. Rxd3 {[%clk 0:00:21]}  Rc8 {[%clk 0:00:17]} 37. Rd6 {[%clk 0:00:17]}  Rc3+ {[%clk 0:00:17]} 38. Kf2 {[%clk 0:00:15]}  Ra3 {[%clk 0:00:16]} 39. Rxb6 {[%clk 0:00:14]}  Rxa4 {[%clk 0:00:16]} 40. Rxb7 {[%clk 0:00:15]}  h5 {[%clk 0:00:16]} 41. h4 {[%clk 0:00:14]}  Kg7 {[%clk 0:00:15]} 42. b5 {[%clk 0:00:14]}  Rb4 {[%clk 0:00:15]} 43. Ke2 {[%clk 0:00:12]}  Rb3 {[%clk 0:00:15]} 44. Kf2 {[%clk 0:00:11]}  Kf8 {[%clk 0:00:15]} 45. b6 {[%clk 0:00:11]}  Kg7 {[%clk 0:00:14]} 46. Rb8 {[%clk 0:00:10]}  Rb2+ {[%clk 0:00:12]} 47. Ke3 {[%clk 0:00:10]}  Rb3+ {[%clk 0:00:12]} 48. Kf2 {[%clk 0:00:08]}  Rb1 {[%clk 0:00:12]} 49. b7 {[%clk 0:00:07]}  Rb3 {[%clk 0:00:11]} 50. Kg2 {[%clk 0:00:06]}  Rb2+ {[%clk 0:00:09]} 51. Kf3 {[%clk 0:00:06]}  Rb6 {[%clk 0:00:09]} 52. Ke4 {[%clk 0:00:05]}  Rb3 {[%clk 0:00:09]} 53. Kd4 {[%clk 0:00:04]}  Rb1 {[%clk 0:00:09]} 54. Kc5 {[%clk 0:00:04]}  Rc1+ {[%clk 0:00:09]} 55. Kd6 {[%clk 0:00:04]}  Rd1+ {[%clk 0:00:09]} 56. Ke7 {[%clk 0:00:04]}  Rb1 {[%clk 0:00:09]} 57. Kd7 {[%clk 0:00:01]}  Rb2 {[%clk 0:00:09]} 58. Kc7 {[%clk 0:00:01]}  Rc2+ {[%clk 0:00:09]} 59. Kb6 {[%clk 0:00:01]}  Rb2+ {[%clk 0:00:09]} 60. Kc7 {[%clk 0:00:02]}  Rc2+ {[%clk 0:00:09]} 61. Kb6 {[%clk 0:00:02]}  Rb2+ {[%clk 0:00:09]} 62. Kc7 {[%clk 0:00:03]} 1/2-1/2


[Site "https://www.chess.com"]

[Event "Titled Tuesday Blitz June 20 Early 2023"]
[White "Dwilewicz, Katarzyna"]
[Black "Torres Dominguez, David"]
[WhiteFideId "1148486"]
[BlackFideId "2220857"]
[WhiteElo "2098"]
[BlackElo "1999"]
[Result "0-1"]
[Round "10"]
[TimeControl "180+2"]
[Date "2023.06.20"]
[WhiteClock "0:00:59"]
[BlackClock "0:00:48"]
[Board "138"]

1. e4 {[%clk 0:03:00]}  Nc6 {[%clk 0:02:59]} 2. d4 {[%clk 0:03:00]}  e5 {[%clk 0:02:59]} 3. d5 {[%clk 0:02:59]}  Nce7 {[%clk 0:02:59]} 4. Nc3 {[%clk 0:03:00]}  Ng6 {[%clk 0:02:59]} 5. Be3 {[%clk 0:02:59]}  Bb4 {[%clk 0:02:59]} 6. Ne2 {[%clk 0:02:55]}  d6 {[%clk 0:02:57]} 7. Qd3 {[%clk 0:02:49]}  Bd7 {[%clk 0:02:54]} 8. O-O-O {[%clk 0:02:48]}  N8e7 {[%clk 0:02:53]} 9. Kb1 {[%clk 0:02:44]}  O-O {[%clk 0:02:52]} 10. h4 {[%clk 0:02:43]}  f5 {[%clk 0:02:51]} 11. h5 {[%clk 0:02:35]}  Nf4 {[%clk 0:02:42]} 12. Bxf4 {[%clk 0:02:02]}  exf4 {[%clk 0:02:36]} 13. Nxf4 {[%clk 0:02:02]}  fxe4 {[%clk 0:02:36]} 14. Qxe4 {[%clk 0:02:01]}  Bxc3 {[%clk 0:02:30]} 15. bxc3 {[%clk 0:02:01]}  Bf5 {[%clk 0:02:29]} 16. Qe3 {[%clk 0:01:53]}  Qd7 {[%clk 0:02:18]} 17. Bd3 {[%clk 0:01:52]}  Rae8 {[%clk 0:02:13]} 18. Qd4 {[%clk 0:01:40]}  Bxd3 {[%clk 0:01:34]} 19. cxd3 {[%clk 0:01:40]}  Nf5 {[%clk 0:01:32]} 20. Qc4 {[%clk 0:01:36]}  b5 {[%clk 0:01:29]} 21. Qb3 {[%clk 0:01:24]}  Nd4 {[%clk 0:01:22]} 22. cxd4 {[%clk 0:01:23]}  Rxf4 {[%clk 0:01:22]} 23. f3 {[%clk 0:01:22]}  Rxd4 {[%clk 0:01:09]} 24. Rhe1 {[%clk 0:01:22]}  a5 {[%clk 0:01:05]} 25. Re4 {[%clk 0:01:19]}  Rexe4 {[%clk 0:01:03]} 26. dxe4 {[%clk 0:01:12]}  Rb4 {[%clk 0:01:02]} 27. Kb2 {[%clk 0:01:08]}  Qe7 {[%clk 0:01:00]} 28. Qxb4 {[%clk 0:01:02]}  axb4 {[%clk 0:00:59]} 29. Kb3 {[%clk 0:01:03]}  Qe5 {[%clk 0:00:56]} 30. Kxb4 {[%clk 0:01:03]}  Qb2+ {[%clk 0:00:54]} 31. Ka5 {[%clk 0:01:03]}  Qxa2+ {[%clk 0:00:48]} 32. Kxb5 {[%clk 0:00:59]}  Qe2+ {[%clk 0:00:48]} 0-1


[Site "https://www.chess.com"]

[Event "Titled Tuesday Blitz June 20 Early 2023"]
[White "Shapiro, Daniel"]
[Black "Skiadopoulos, Nikolaos"]
[WhiteFideId "2001780"]
[BlackFideId "4200772"]
[WhiteElo "2337"]
[BlackElo "2022"]
[Result "1-0"]
[Round "10"]
[TimeControl "180+2"]
[Date "2023.06.20"]
[WhiteClock "0:00:55"]
[BlackClock "0:01:06"]
[Board "140"]

1. d4 {[%clk 0:03:00]}  Nf6 {[%clk 0:02:59]} 2. c4 {[%clk 0:03:00]}  c5 {[%clk 0:02:58]} 3. d5 {[%clk 0:02:59]}  b5 {[%clk 0:02:58]} 4. cxb5 {[%clk 0:02:59]}  a6 {[%clk 0:02:58]} 5. e3 {[%clk 0:03:00]}  g6 {[%clk 0:02:51]} 6. Nc3 {[%clk 0:02:58]}  Bg7 {[%clk 0:02:50]} 7. Nf3 {[%clk 0:02:58]}  O-O {[%clk 0:02:50]} 8. a4 {[%clk 0:02:58]}  d6 {[%clk 0:02:49]} 9. Ra3 {[%clk 0:02:58]}  e6 {[%clk 0:02:43]} 10. Be2 {[%clk 0:02:41]}  h6 {[%clk 0:02:31]} 11. O-O {[%clk 0:02:38]}  Bb7 {[%clk 0:02:16]} 12. dxe6 {[%clk 0:02:16]}  fxe6 {[%clk 0:02:15]} 13. Qc2 {[%clk 0:02:15]}  Qe8 {[%clk 0:02:08]} 14. Rd1 {[%clk 0:02:07]}  Bxf3 {[%clk 0:02:03]} 15. Bxf3 {[%clk 0:02:06]}  d5 {[%clk 0:02:03]} 16. e4 {[%clk 0:01:53]}  d4 {[%clk 0:01:55]} 17. e5 {[%clk 0:01:53]}  Nd5 {[%clk 0:01:55]} 18. Nxd5 {[%clk 0:01:51]}  exd5 {[%clk 0:01:49]} 19. Bxd5+ {[%clk 0:01:49]}  Kh7 {[%clk 0:01:50]} 20. Bxa8 {[%clk 0:01:49]}  Qxe5 {[%clk 0:01:45]} 21. Be4 {[%clk 0:01:30]}  Rf6 {[%clk 0:01:42]} 22. Rg3 {[%clk 0:01:28]}  axb5 {[%clk 0:01:34]} 23. Rxg6 {[%clk 0:01:24]}  Rxg6 {[%clk 0:01:33]} 24. Bxg6+ {[%clk 0:01:24]}  Kh8 {[%clk 0:01:33]} 25. axb5 {[%clk 0:01:23]}  Nd7 {[%clk 0:01:32]} 26. Qe4 {[%clk 0:01:17]}  Qxe4 {[%clk 0:01:22]} 27. Bxe4 {[%clk 0:01:16]}  c4 {[%clk 0:01:23]} 28. Bd2 {[%clk 0:01:08]}  Nc5 {[%clk 0:01:18]} 29. Bd5 {[%clk 0:01:04]}  c3 {[%clk 0:01:18]} 30. bxc3 {[%clk 0:01:00]}  dxc3 {[%clk 0:01:18]} 31. Be3 {[%clk 0:00:58]}  Na4 {[%clk 0:01:06]} 32. b6 {[%clk 0:00:55]} 1-0


[Site "https://www.chess.com"]

[Event "Titled Tuesday Blitz June 20 Early 2023"]
[White "Gyulamiryan-koryun"]
[Black "Ouellet, Maili-Jade"]
[BlackFideId "2620472"]
[WhiteElo "1831"]
[BlackElo "2077"]
[Result "1-0"]
[Round "10"]
[TimeControl "180+2"]
[Date "2023.06.20"]
[WhiteClock "0:00:53"]
[BlackClock "0:00:00"]
[Board "142"]

1. d4 {[%clk 0:02:51]}  Nf6 {[%clk 0:02:59]} 2. c4 {[%clk 0:02:48]}  g6 {[%clk 0:02:55]} 3. Nc3 {[%clk 0:02:47]}  d5 {[%clk 0:02:55]} 4. Nf3 {[%clk 0:02:45]}  Bg7 {[%clk 0:02:53]} 5. h4 {[%clk 0:02:44]}  h5 {[%clk 0:02:32]} 6. Bg5 {[%clk 0:02:43]}  c6 {[%clk 0:02:29]} 7. e3 {[%clk 0:02:42]}  Ne4 {[%clk 0:02:26]} 8. Nxe4 {[%clk 0:02:40]}  dxe4 {[%clk 0:02:26]} 9. Nd2 {[%clk 0:02:40]}  Bf5 {[%clk 0:02:13]} 10. Qb3 {[%clk 0:02:38]}  Qb6 {[%clk 0:02:07]} 11. Qa3 {[%clk 0:02:34]}  f6 {[%clk 0:01:56]} 12. Bf4 {[%clk 0:02:33]}  Nd7 {[%clk 0:01:54]} 13. b4 {[%clk 0:02:22]}  a5 {[%clk 0:01:50]} 14. b5 {[%clk 0:02:21]}  cxb5 {[%clk 0:01:44]} 15. cxb5 {[%clk 0:02:20]}  O-O {[%clk 0:01:26]} 16. Qxe7 {[%clk 0:02:12]}  Rfc8 {[%clk 0:01:14]} 17. Bc4+ {[%clk 0:02:10]}  Kh7 {[%clk 0:01:13]} 18. O-O {[%clk 0:02:05]}  a4 {[%clk 0:01:11]} 19. Rfc1 {[%clk 0:02:01]}  Qa5 {[%clk 0:01:07]} 20. Nf1 {[%clk 0:01:52]}  Re8 {[%clk 0:00:59]} 21. Qd6 {[%clk 0:01:49]}  Rac8 {[%clk 0:00:55]} 22. Qa3 {[%clk 0:01:43]}  Nb6 {[%clk 0:00:52]} 23. Be2 {[%clk 0:01:42]}  Nd5 {[%clk 0:00:49]} 24. Bg3 {[%clk 0:01:30]}  Nc3 {[%clk 0:00:46]} 25. Bd1 {[%clk 0:01:20]}  Nxd1 {[%clk 0:00:28]} 26. Rxd1 {[%clk 0:01:18]}  Qxb5 {[%clk 0:00:22]} 27. Rab1 {[%clk 0:01:17]}  Qa6 {[%clk 0:00:21]} 28. Qb4 {[%clk 0:01:14]}  Rc2 {[%clk 0:00:17]} 29. a3 {[%clk 0:01:11]}  Bc8 {[%clk 0:00:06]} 30. Rdc1 {[%clk 0:01:08]}  Rxc1 {[%clk 0:00:05]} 31. Rxc1 {[%clk 0:01:09]}  b5 {[%clk 0:00:04]} 32. Rc7 {[%clk 0:01:09]}  Bb7 {[%clk 0:00:04]} 33. Bd6 {[%clk 0:01:02]}  Bd5 {[%clk 0:00:00]} 34. Bf8 {[%clk 0:00:53]} 1-0


[Site "https://www.chess.com"]